Cogmind - Beta 10.1 @@@ ROGUE MODE // 2020.10.03 @ 18:42:55 Player: derk Result: Destroyed by D-53 Grenadier with Mini Grenade Launcher Performance ------------- Evolutions (0) 0 Regions Visited (4) 800 Robots Destroyed (26) 130 Value Destroyed (539) 539 Prototype IDs (25) 500 Alien Tech Used (0) 0 Bonus (369) 369 TOTAL SCORE: 2338 Bonus ------- Follower Combat Kills 81 Aligned with FarCom 300 Friendly Fire -12 Cogmind --------- Core Integrity 0/250 Matter 275/300 Energy 80/170 System Corruption 0% Temperature Cool (0) Movement Rolling (110) Ox2 Location -9/Mines Parts ------- > --- POWER (1) -------- Makeshift Power Source > --- PROPULSION (2) --- Armored Wheel Armored Wheel > --- UTILITY (2) ------ High-capacity Storage Unit High-capacity Storage Unit > --- WEAPON (2) ------- Makeshift Sword > --- INVENTORY (20) --- Light Treads Armored Wheel High-capacity Storage Unit High-capacity Storage Unit High-capacity Storage Unit High-capacity Battery (400) High-capacity Matter Pod (200) Targeting Computer Light Armor Plating Makeshift Armor Plating Hacking Suite AWS/Gauss Peak State ------------ > --- POWER ------------ Makeshift Power Source > --- PROPULSION ------- Armored Wheel Armored Wheel > --- UTILITY ---------- High-capacity Storage Unit High-capacity Storage Unit > --- WEAPON ----------- Makeshift Sword > --- INVENTORY -------- Light Treads Armored Wheel High-capacity Storage Unit High-capacity Storage Unit High-capacity Storage Unit High-capacity Battery High-capacity Matter Pod Targeting Computer Light Armor Plating Makeshift Armor Plating Hacking Suite AWS/Gauss [Rating: 17] Favorites ----------- Power Ion Engine Engine Ion Engine Power Core Light Nuclear Core Propulsion Light Treads Treads Light Treads Wheel Armored Wheel Utility High-capacity Storage Unit Storage High-capacity Storage Unit Weapon Assault Rifle Energy Gun Particle Gun Ballistic Gun Assault Rifle Slashing Weapon Makeshift Sword Build | -11 -10 -10 -10 -9 ------- Run | Scr Mat Min Exi Min Slots Evolved . | . . . . . Power . | . . . . . Propulsion . | . . . . . Utility . | . . . . . Weapon . | . . . . . Parts Attached 34 | 7 14 2 8 3 Power 6 | 1 3 . 1 1 Engine 5 | 1 3 . . 1 Core 1 | . . . 1 . Reactor . | . . . . . Propulsion 11 | 2 4 . 4 1 Treads 5 | 2 2 . 1 . Leg . | . . . . . Wheel 6 | . 2 . 3 1 Hover . | . . . . . Flight . | . . . . . Utility 7 | 2 3 . 2 . Device . | . . . . . Storage 7 | 2 3 . 2 . Processor . | . . . . . Hackware . | . . . . . Protection . | . . . . . Artifact . | . . . . . Weapon 10 | 2 4 2 1 1 Energy Gun 7 | 1 3 2 1 . Energy Cannon . | . . . . . Ballistic Gun 2 | 1 1 . . . Ballistic Cannon . | . . . . . Launcher . | . . . . . Special Weapon . | . . . . . Impact Weapon . | . . . . . Slashing Weapon 1 | . . . . 1 Piercing Weapon . | . . . . . Special Melee Weapon . | . . . . . Unidentified Prototypes . | . . . . . Parts Lost 8 | . . 1 5 2 Power 2 | . . . 1 1 Propulsion 2 | . . . 1 1 Utility . | . . . . . Weapon 4 | . . 1 3 . Highest Loss Streak 5 | . . 1 5 2 Average Slot Usage (%) 98 | . 100 100 97 83 Engine 13 | . 14 14 13 . Treads 24 | . 23 28 24 . Wheel 3 | . 4 . 3 28 Storage 28 | . 28 28 28 28 Energy Gun 13 | . 14 14 13 . Ballistic Gun 13 | . 14 14 12 . Naked Turns . | . . . . . Heaviest Build 75 | 14 58 58 75 71 Greatest Support 40 | 40 40 40 40 24 Greatest Overweight (x) 6 | . 2 1 6 2 Average Overweight (x) 1 | . 1 1 1 2 Largest Inventory Capacity 20 | 8 18 18 20 20 Average Capacity 17 | 5 16 18 19 20 Most Carried 20 | 8 18 18 20 15 Average Carried 16 | 4 15 17 18 14 Final Capacity 20 | 8 18 18 20 20 Final Carried 18 | 8 18 17 16 13 Class Distribution -------------------- 73% | Mutant 26% | Hauler-Mutant Dominant Class ---------------- Mutant | -10/Materials Mutant | -10/Mines Hauler-Mutant | -10/Exiles Hauler-Mutant | -9/Mines Resources | -11 -10 -10 -10 -9 ----------- Run | Scr Mat Min Exi Min Matter Collected 858 | 274 471 60 23 30 Remotely . | . . . . . Salvage Created 795 | 83 583 129 . . Parts 60 | 3 46 11 . . Haulers Intercepted 1 | . 1 . . . Recyclers Shooed 1 | . 1 . . . Parts Field Recycled . | . . . . . Retrieved Matter . | . . . . . Parts Self-Destructed . | . . . . . Prevented . | . . . . . Kills | -11 -10 -10 -10 -9 ------- Run | Scr Mat Min Exi Min Combat Hostiles Destroyed 18 | . 14 3 . 1 Melee 1 | . . . . 1 Guns 17 | . 14 3 . . Classes Destroyed 8 | 1 6 . . 1 Worker 2 | . 2 . . . Hauler 1 | . 1 . . . Recycler 2 | 1 . 1 . . Operator 2 | . 2 . . . Watcher 1 | . 1 . . . Swarmer 8 | . 5 3 . . Grunt 9 | . 9 . . . Demolisher 1 | . . . . 1 Best Kill Streak 3 | 1 3 2 . 1 Combat Bots Only 3 | . 3 2 . 1 Max Kills in Single Turn 1 | 1 1 1 . 1 Gunslinging . | . . . . . Exploded . | . . . . . Melee 1 | . . . . 1 Uniques/NPCs Destroyed . | . . . . . Combat | -11 -10 -10 -10 -9 -------- Run | Scr Mat Min Exi Min Damage Taken 1361 | . 395 140 448 378 Core 254 | . 44 8 42 160 Absorbed by Shields . | . . . . . Core Remaining (%) 100 | 100 . . . . Volleys Fired 64 | 4 47 12 1 . Largest 2 | 2 2 2 2 . Hottest 130 | 60 85 85 130 . Shots Fired 128 | 8 94 24 2 . Gun 128 | 8 94 24 2 . Cannon . | . . . . . Launcher . | . . . . . Special . | . . . . . Kinetic 63 | 4 47 12 . . Thermal 58 | . 44 12 2 . Explosive . | . . . . . Electromagnetic 7 | 4 3 . . . Robot Hit Streak 14 | 4 12 14 . . Robot Miss Streak 8 | 1 3 8 2 . Penetration Max . | . . . . . Secondary Targets 2 | . 2 . . . Max Gunslinging Chain 1 | . 1 . . . Shots Hit Robots 86 | 6 66 12 . 2 Core Hits 44 | 2 35 6 . 1 Critical Hits . | . . . . . Critical Kills . | . . . . . Critical Parts Destroyed . | . . . . . Melee Attacks 7 | . . . . 7 Impact . | . . . . . Slashing 7 | . . . . 7 Piercing . | . . . . . Sneak Attacks . | . . . . . Combat Hostiles . | . . . . . Follow-up Attacks . | . . . . . Damage Inflicted 1130 | 53 814 187 . 76 Guns 1054 | 53 814 187 . . Cannons . | . . . . . Explosions . | . . . . . Melee 76 | . . . . 76 Ramming . | . . . . . Kinetic 465 | 15 380 70 . . Thermal 538 | . 421 117 . . Explosive . | . . . . . Electromagnetic 51 | 38 13 . . . Impact . | . . . . . Slashing 76 | . . . . 76 Piercing . | . . . . . Highest Corruption . | . . . . . Average Corruption . | . . . . . Corruption Purged . | . . . . . Overload Shots . | . . . . . Overflow Damage . | . . . . . Projectiles . | . . . . . Explosions . | . . . . . Melee . | . . . . . Knockbacks . | . . . . . Impact . | . . . . . Kinetic . | . . . . . Secondary . | . . . . . Self-Inflicted Damage . | . . . . . Shots . | . . . . . Rammed . | . . . . . Targets Rammed . | . . . . . Kicked . | . . . . . Crushed . | . . . . . Highest Temperature 180 | 20 180 172 75 . Average Temperature 46 | 15 45 54 39 . Received Heat Transfer 312 | . 168 66 78 . Siege Activations . | . . . . . Robots Corrupted . | . . . . . Combat Hostiles . | . . . . . Parts Fried . | . . . . . Impact Corruptions . | . . . . . Robots Melted . | . . . . . Combat Hostiles . | . . . . . Parts Melted . | . . . . . Heat Transferred 1303 | . 1007 296 . . Parts Sabotaged . | . . . . . Parts Stolen . | . . . . . Parts Stripped . | . . . . . Power Chain Reactions . | . . . . . Missiles Intercepted . | . . . . . Alert | -11 -10 -10 -10 -9 ------- Run | Scr Mat Min Exi Min Peak Influence 164 | 5 164 132 . 20 Initial 5 | . 3 5 . . Average 58 | 1 76 44 . 2 Maximum Alert Level . | . . . . . Low Security (%) 100 | 100 100 100 . 100 Level 1 . | . . . . . Level 2 . | . . . . . Level 3 . | . . . . . Level 4 . | . . . . . Level 5 . | . . . . . High Security . | . . . . . Max Security . | . . . . . Squads Dispatched 4 | . 4 . . . Investigation 1 | . 1 . . . Extermination . | . . . . . Reinforcement 3 | . 3 . . . Assault . | . . . . . Garrison . | . . . . . Intercept . | . . . . . Construction Impeded . | . . . . . Haulers Reinforced . | . . . . . Stealth | -11 -10 -10 -10 -9 --------- Run | Scr Mat Min Exi Min Distress Signals 1 | . 1 . . . Communications Jammed . | . . . . . Distress Signals . | . . . . . Times Spotted 42 | . 28 8 3 3 Peak Tracking Total 6 | . 6 3 2 3 Tactical Retreats 1 | . . . 1 . Traps | -11 -10 -10 -10 -9 ------- Run | Scr Mat Min Exi Min Traps Triggered . | . . . . . Indirectly . | . . . . . Trap Hack Attempts . | . . . . . Triggered . | . . . . . Disarmed . | . . . . . Reprogrammed . | . . . . . Reused . | . . . . . Traps Extracted . | . . . . . Installed . | . . . . . Triggered . | . . . . . Exploded 1 | . . . 1 . Machines | -11 -10 -10 -10 -9 ---------- Run | Scr Mat Min Exi Min Machines Disabled 2 | . 1 . 1 . Max in Single Turn 1 | . 1 . 1 . Machines Sabotaged . | . . . . . Garrisons Compromised . | . . . . . Overloaded Fab Kills . | . . . . . Fab Network Shutdowns . | . . . . . Hacking | -11 -10 -10 -10 -9 --------- Run | Scr Mat Min Exi Min Machines Accessed 10 | . 8 . 2 . Terminals 6 | . 6 . . . Fabricators . | . . . . . Repair Stations . | . . . . . Recycling Units 2 | . 2 . . . Scanalyzers . | . . . . . Garrison Access . | . . . . . Total Hacks 23 | . 21 . 2 . Successful 13 | . 11 . 2 . Failed 10 | . 10 . . . Catastrophic 2 | . 2 . . . Database Lockouts . | . . . . . Manual 13 | . 12 . 1 . Terminals 19 | . 19 . . . Fabricators . | . . . . . Repair Stations . | . . . . . Recycling Units 2 | . 2 . . . Scanalyzers . | . . . . . Garrison Access . | . . . . . Terminal Hacks 11 | . 9 . 2 . Record 1 | . . . 1 . Part Schematic 1 | . 1 . . . Prototype ID Bank 1 | . 1 . . . Unreport Threat 1 | . 1 . . . Locate Traps 3 | . 3 . . . Hauler Manifests 1 | . 1 . . . Zone Layout 2 | . 2 . . . EX-Prototype ID Bank 1 | . . . 1 . Fabricator Hacks . | . . . . . Repair Station Hacks . | . . . . . Recycling Unit Hacks 1 | . 1 . . . Report Inventory 1 | . 1 . . . Scanalyzer . | . . . . . Garrison Access Hacks . | . . . . . Unauthorized Hacks 1 | . 1 . . . Terminals . | . . . . . Fabricators . | . . . . . Repair Stations . | . . . . . Recycling Units 1 | . 1 . . . Tunnel 1 | . 1 . . . Scanalyzers . | . . . . . Garrison Access . | . . . . . Data Cores Recovered . | . . . . . Used . | . . . . . Hacking Detections 6 | . 6 . . . Full Trace Events . | . . . . . Feedback Events . | . . . . . Feedback Blocked . | . . . . . Robot Schematics Acquired . | . . . . . Robots Built . | . . . . . Matter . | . . . . . Time . | . . . . . Total Robot Build Rating . | . . . . . Part Schematics Acquired 1 | . 1 . . . Parts Built . | . . . . . Matter . | . . . . . Time . | . . . . . Total Part Build Rating . | . . . . . Parts Repaired . | . . . . . Time . | . . . . . Parts Recycled . | . . . . . Recycled Matter . | . . . . . Retrieved Matter . | . . . . . Retrieved Components . | . . . . . Parts Scanalyzed . | . . . . . Part Schematics Acquired . | . . . . . Parts Damaged . | . . . . . Bothacking | -11 -10 -10 -10 -9 ------------ Run | Scr Mat Min Exi Min Used RIF Installer . | . . . . . Robots Hacked . | . . . . . Non-combat . | . . . . . Combat . | . . . . . Robot Hacks Applied . | . . . . . Relay Couplers Released . | . . . . . Robots Rewired . | . . . . . Allies Hacked . | . . . . . Hacks Repelled . | . . . . . Allies | -11 -10 -10 -10 -9 -------- Run | Scr Mat Min Exi Min Total Allies 2 | . . 2 . . Largest Group 2 | . . 2 1 . Highest-Rated Group 49 | . . 49 31 . Highest-Rated Ally 31 | . . 31 31 . Total Orders . | . . . . . Ally Attacks 16 | . . 16 . . Total Damage 253 | . . 253 . . Kills 5 | . . 5 . . Allies Corrupted . | . . . . . Allies Melted . | . . . . . Intel | -11 -10 -10 -10 -9 ------- Run | Scr Mat Min Exi Min Robot Analysis Total . | . . . . . Derelict Logs Recovered 2 | . . 1 . 1 Drone Launches . | . . . . . Drone Recoveries . | . . . . . Exploration | -11 -10 -10 -10 -9 ------------- Run | Scr Mat Min Exi Min Turns Passed 3623 | 116 1439 913 1065 90 Spaces Moved 1949 | 55 725 483 620 66 Core 2 | 2 . . . . Treads 1632 | 53 600 483 496 . Legs . | . . . . . Wheels 315 | . 125 . 124 66 Hover . | . . . . . Flight . | . . . . . Fastest Speed 50 | 50 100 180 110 110 Average Speed 168 | 156 166 180 168 110 Slowest Speed 220 | 160 200 180 220 110 Overloaded Moves . | . . . . . Propulsion Burnouts . | . . . . . Robots Hopped . | . . . . . Cave-ins Triggered . | . . . . . Exploration Rate (%) 61 | 4 97 87 90 28 Regions Visited 4 Branch Regions 3 Pre-discovered Areas 2 | . 1 . 1 . Known Exits Taken . | . . . . . Unknown Exits Taken 4 | 1 1 1 1 . Scrap Searched 1 | . . . . 1 Spaces Dug . | . . . . . Terrain Destroyed . | . . . . . Melee . | . . . . . Projectile . | . . . . . AOE . | . . . . . Terrain Rammed . | . . . . . Walls Destroyed . | . . . . . Machines Disabled . | . . . . . Actions | -11 -10 -10 -10 -9 --------- Run | Scr Mat Min Exi Min Total 2172 | 75 874 505 642 76 Wait 40 | 2 35 3 . . Move 1945 | 54 724 482 619 66 Hop . | . . . . . Pick Up 48 | 8 30 3 7 . Fast Attach 7 | 7 . . . . Attach 8 | . 1 1 3 3 Detach . | . . . . . Swap 19 | . 13 1 5 . Drop 34 | . 24 3 7 . Fire 64 | 4 47 12 1 . Melee 7 | . . . . 7 Ram . | . . . . . Kick . | . . . . . Crush . | . . . . . Escape Stasis . | . . . . . Rewire . | . . . . . Trap . | . . . . . Miscellaneous . | . . . . . Route ------- -11/Scrapyard -10/Materials (discovered 5 exits: [*Mat x3] / [*Min x2]) -10/Mines (discovered 3 exits: [*Mat x2] / *Exi) -10/Exiles -9/Mines History --------- Turn | Location | Event 2 | -11/Scrapyard | Met Revision 17 33 | -11/Scrapyard | Discovered new exit (range 16) 117 | -11/Scrapyard | Entered Materials 197 | -10/Materials | Discovered new exit (range 14) 240 | -10/Materials | Discovered new exit (range 16) 303 | -10/Materials | Build established: Mutant 842 | -10/Materials | Discovered new exit (range 3) 1165 | -10/Materials | Discovered new exit (range 14) 1165 | -10/Materials | Discovered new exit (range 13) 1556 | -10/Materials | Entered Mines 1569 | -10/Mines | Learned Materials emergency access door positions 1661 | -10/Mines | Discovered new exit (range 8) 1782 | -10/Mines | Deemed a non-threat by the Exiles lab entrance 1936 | -10/Mines | A weapon hastily lodged in a ceiling crevice suddenly fell to the ground 1999 | -10/Mines | Discovered new exit (range 10) 2159 | -10/Mines | Discovered new exit (range 5) 2469 | -10/Mines | Entered Exiles 2469 | -10/Exiles | Accompanied by 1 ally 2499 | -10/Exiles | Led the pair of lost Derelicts to a safe place 2514 | -10/Exiles | Met 8R-AWN 2544 | -10/Exiles | Met EX-HEX 2688 | -10/Exiles | Met EX-DEC 2734 | -10/Exiles | Visited The Gauntlet 2931 | -10/Exiles | Learned location of Zion (-7) 2939 | -10/Exiles | Build established: Hauler-Mutant 3095 | -10/Exiles | Discovered new exit (range 12) 3197 | -10/Exiles | Met EX-BIN 3223 | -10/Exiles | Aligned with FarCom system 3224 | -10/Exiles | Given EX-Vault access code 3269 | -10/Exiles | Opened EX-Vault 3284 | -10/Exiles | Found AWS/Gauss 3322 | -10/Exiles | Warned to stay clear of 0b10 Research branches 3345 | -10/Exiles | Exiles lab attacked by MAIN.C 3522 | -10/Exiles | Lost 5 parts (1p1n3w) 3534 | -10/Exiles | Left Exiles lab with AWS/Gauss 3534 | -10/Exiles | Entered Mines 3548 | -9/Mines | Learned Materials emergency access door positions 3569 | -9/Mines | Assembled infested the area 3602 | -9/Mines | Core integrity fell below 50% 3609 | -9/Mines | Core integrity fell below 20% 3624 | -9/Mines | Destroyed by D-53 Grenadier with Mini Grenade Launcher Last Messages --------------- 03534_ Receiving FarCom transmissions... 03535_ AM-PHS: "That was close. Too bad in all the rush we got split up from the others." 03548_ Acquired derelict log, extracted data. Data stored: Materials emergency access points. 03555_ AM-PHS: "Oh no, it's like what happened to the Exiles when they were wandering homeless, only there's no Warlord to save us!" 03569_ ALERT: Infestation in the mines, dispatching Demolisher response squad. 03572_ C-30 ARC bursts open, deploying its payload. 03572_ D-53 Grenadier unfolds itself. 03582_ Searching scrap... 03582_ Found Hcp. Matter Pod. 03582_ Found 30 Matter. 03583_ Acquired 30 matter. 03598_ The unstable cave ceiling collapses. 03610_ Lgt. Nuclear Core destroyed. 03612_ D-53 Grenadier destroyed. 03616_ The unstable cave ceiling collapses. 03622_ Arm. Wheel destroyed. Map ----- +----------------------------------------------------+ | ???????????????????????????????????????????????? | | ???????????????????????????????????????????????? | | ???????????????????????????????????????????????? | | ???????????????????????????????????????????????? | | ???????????????????????????????????????????????? | | ???????????????????????????????????????????????? | | ?????????????????????????##????????????????????? | | ?????????###???????????? ??#??????????????????? | | ????????## ##?#####???? #? #??????????????????? | | ????????# ### ##??# ## ###????????????????? | | ????????# ### #????????????????? | | ?????????# #????????????????? | | ??????????# """ #? #????????????????? | | ??###????## """ #? #????????????????? | | ?## #### """ #?? #????????????????? | | ?# #???? #????????????????? | | ?# % ### ##??? #????????????????? | | ?# #### ##?## #???? ##???????????????? | | ???????## ##???# #???? %=????????????????? | | ??????## #????# #???? ##???????????????? | | ??????# ##????## ###?? #???????????????? | | ??????# #??????# ## ## #???????????????? | | ??????# ##??????# a #????????????????? | | ??????# #???????# d #????????????????? | | ??????# #???????# ##???????????????? | | ??????## ##???????# @ #???????????????? | | ???????# #######???## ##???????????????? | | ???????# ### ####?# #????????????????? | | ???????# ### #????????????????? | | ???????# ## # #????????????????? | | ????#### ## ## # #????????????????? | | ????# ### # ##????????????????? | | ????# #?## #????????????????? | | ????# ###??# #????????????????? | | ????# #????# # #????????????????? | | ????# #????## #????????????????? | | ????# #?????##### #???????????????? | | ????# #?????????## #???????????????? | | ???? #??????????## #???????????????? | | ??? #???????????# ##???????????????? | | ??######??????????# ##????????????????? | | ????????????????? #?????????????????? | | ???????????????? ### #?????????????????? | | ???????????????# #??## ##?????????????????? | | ???????????????#####????#####??????????????????? | | ???????????????????????????????????????????????? | | ???????????????????????????????????????????????? | | | | | | | +----------------------------------------------------+ Best States ------------- Heat Dissipation 25 Energy Generation 14 Energy Capacity 250 Matter Stores 300 Matter Capacity 300 Sight Range 16 Terrain Scan Density 10 Evasion (%) 40 Recoil Reduction 2 Item Schematics ----------------- Hcp. Storage Unit | -10/Materials | Hacked Robot Schematics ------------------ None Fabricated ------------ Nothing Alien Tech Used ----------------- None Achievements -------------- None Challenges ------------ None Game ------ Seed MobileQuantumSlayer Manual? 0 Play Time 00:31:44 Cumulative 152.5 hours Start 2020.10.03 @ 18:01:10 End 2020.10.03 @ 18:42:55 Sessions 1 Manual Loads 0 Difficulty Rogue Special Mode None Game No. 77 Rogue 77 Adventurer 0 Explorer 0 Win Type - Total 2 Types 2/0/0/0/0/0/0/0/0 Lore% 46 Gallery% 75 Achievement% 56 Wizard Run 0 Options --------- ASCII 0 Keyboard 0 Movement Numpad Keybinds 0 Fullscreen 1 Font 18/SmallcapsGlow Map View 76x50 Tactical HUD 1 Map Filters NONE Filters NONE Steam 1 RUN: b8533792-a02c-4eac-8169-f7dacc09d2eb